bitfinex/quotes_SOLUSD_20250830
["timestamp","ask_amount","ask_price","bid_price","bid_amount"]
[1756534845767,4.56460606,205.78,205.77,0.03]
[1756534845967,4.56460606,205.79,205.77,0.03]
[1756534846176,4.56460606,205.79,205.77,0.71]
[1756534846375,4.56460606,205.79,205.78,0.68]
[1756534846795,4.56460606,205.79,205.77,0.03]
[1756534846980,4.62460606,205.81,205.78,0.68]
[1756534847179,0.06,205.81,205.79,0.68]
[1756534847351,0.06,205.81,205.79,39.04]
[1756534847554,0.06,205.81,205.8,5.53908649]
[1756534847964,0.06,205.81,205.8,4.85908649]
[1756534848268,0.06,205.81,205.8,5.53908649]
[1756534849969,0.06,205.81,205.8,19.27684207]
[1756534850183,0.06,205.81,205.8,23.84144813]
[1756534850384,0.06,205.81,205.8,28.46605413]
[1756534853209,0.06,205.84,205.82,0.14216157]
[1756534853518,0.06,205.84,205.83,57.32236164]
[1756534853891,0.06,205.84,205.83,61.90696764]
[1756534854084,0.06,205.84,205.83,62.58696764]
[1756534854690,0.06,205.86,205.84,13.73775558]
[1756534854900,0.06,205.86,205.85,4.56460606]
[1756534855089,0.06,205.86,205.85,5.24460606]
[1756534855402,0.06,205.86,205.85,0.68]
[1756534856099,0.06,205.86,205.83,23.71857828]
[1756534856303,0.06,205.86,205.84,57.32236164]
[1756534856504,0.06,205.86,205.84,52.75775558]
[1756534856802,0.7,205.85,205.84,4.8581174]
[1756534857007,4.62460606,205.86,205.84,4.8581174]
[1756534857008,0.06,205.86,205.84,43.1981174]
[1756534860427,0.76,205.86,205.84,43.1981174]
[1756534861410,0.76,205.86,205.85,26.0]
[1756534861616,0.76,205.86,205.85,64.32]
[1756534861942,0.06,205.86,205.85,65.0]
[1756534862120,0.06,205.86,205.85,83.30236164]
[1756534862434,0.06,205.86,205.85,92.72487388]
[1756534864423,1e-08,205.86,205.85,92.72487388]
[1756534864602,1e-08,205.86,205.85,92.04487388]
[1756534864803,1e-08,205.86,205.85,92.72487388]
[1756534865528,1e-08,205.86,205.85,88.16026782]
[1756534865747,1e-08,205.89,205.88,39.59559401]
[1756534865959,1e-08,205.89,205.88,82.60236164]
[1756534866119,1e-08,205.89,205.88,83.28236164]
[1756534866320,1e-08,205.89,205.88,85.22821764]
[1756534866520,1e-08,205.89,205.88,90.085416]
[1756534866761,35.19234019,206.04,205.99,26.14216157]
[1756534866916,0.74,206.03,205.99,82.60236164]
[1756534867120,0.74,206.03,205.99,26.0]
[1756534867121,0.74,206.0,205.99,26.0]
[1756534867348,0.74,206.0,205.99,38.3]
[1756534867546,0.74,206.0,205.99,40.245478]
[1756534867760,0.74,206.0,205.99,38.3]
[1756534868623,0.06,206.0,205.99,56.7501986]
[1756534869026,0.06,206.0,205.99,61.99480466]
[1756534869723,0.06,206.0,205.99,62.13696623]
[1756534870538,0.06,206.0,205.99,61.45696623]
[1756534870726,0.06,206.0,205.99,56.89236017]
[1756534870933,0.06,206.0,205.99,61.45696623]
[1756534871159,0.06,206.0,205.99,62.13696623]
[1756534874122,0.06,206.0,205.99,61.45696623]
[1756534874323,0.06,206.0,205.99,57.57236017]
[1756534874522,0.06,206.0,205.99,62.13696623]
[1756534876727,0.06,206.0,205.99,64.08187623]
[1756534876923,0.06,206.0,205.99,59.51727017]
[1756534877442,0.06,206.0,205.99,64.08187623]
[1756534877957,1e-08,206.0,205.99,64.08187623]
[1756534878166,1e-08,206.03,206.02,26.0]
[1756534878460,1e-08,206.03,206.02,82.58236164]
[1756534878666,1e-08,206.03,206.02,83.26236164]
[1756534878836,1e-08,206.03,206.02,85.20679964]
[1756534879366,1e-08,206.03,206.02,90.06069731]
[1756534879534,1e-08,206.05,206.03,13.73775558]
[1756534879735,1e-08,206.05,206.04,57.06770429]
[1756534879938,1e-08,206.05,206.04,57.74770429]
[1756534880135,1e-08,206.05,206.04,59.69195329]
[1756534880749,1e-08,206.05,206.04,20.24661064]
[1756534880935,1e-08,206.05,206.04,15.53984301]
[1756534881141,1e-08,206.05,206.04,58.38444907]
[1756534881340,1e-08,206.05,206.04,63.38003715]
[1756534882153,1e-08,206.05,206.04,58.81543109]
[1756534882361,1e-08,206.05,206.04,63.38003715]
[1756534882774,1e-08,206.05,206.04,58.81543109]
[1756534884870,1e-08,206.05,205.99,12.13651148]
[1756534884871,31.24460607,206.05,205.96,0.68]
[1756534885044,4.56460606,205.98,205.97,38.26]
[1756534885236,5.24460606,205.98,205.97,38.26]
[1756534885658,5.24460606,205.98,205.94,4.85578323]
[1756534885839,4.56460606,205.96,205.95,38.26]
[1756534886150,5.24460606,205.96,205.95,38.26]
[1756534886744,5.24460606,205.96,205.89,14.595344]
[1756534887059,4.56460606,205.94,205.91,13.59559401]
[1756534887246,0.68,205.93,205.92,38.26]
[1756534890066,0.68,205.93,205.89,18.59471803]
[1756534890267,0.68,205.92,205.9,51.99775558]
[1756534890436,0.68,205.91,205.9,13.59559401]
[1756534890642,5.24460606,205.91,205.9,51.85559401]
[1756534890948,5.24460606,205.91,205.9,38.26]
[1756534893853,5.24460606,205.91,205.9,43.11672656]
[1756534895060,5.24460606,205.91,205.9,43.14672656]
[1756534896247,5.04460606,205.91,205.9,43.14672656]
[1756534896651,4.36460606,205.91,205.9,43.14672656]
[1756534896951,4.56460606,205.93,205.9,43.14672656]
[1756534897350,4.56460606,205.91,205.9,0.03]
[1756534897765,5.26460606,205.91,205.9,0.03]
[1756534898268,9.82921212,205.91,205.9,0.03]
[1756534898770,14.68570281,205.91,205.9,0.03]
[1756534898976,9.82921212,205.91,205.9,0.03]
[1756534899663,5.26460606,205.91,205.9,0.03]
[1756534901150,0.7,205.91,205.9,38.31]
[1756534901351,9.82921212,205.91,205.9,0.03]
[1756534903172,5.26460606,205.91,205.9,0.03]
[1756534905962,4.56460606,205.91,205.9,0.03]
[1756534906159,30.56460606,205.91,205.9,0.03]
[1756534907087,5.26460606,205.91,205.9,0.03]
[1756534908295,31.26460606,205.91,205.9,0.03]
[1756534912965,78.96570281,205.91,205.87,115.74907504]
[1756534913169,30.56460606,205.88,205.87,0.03]
[1756534913382,30.56460606,205.88,205.85,0.03]
[1756534913572,4.56460606,205.86,205.85,0.03]
[1756534913972,5.26460606,205.86,205.85,0.03]
[1756534914989,10.12227632,205.86,205.85,0.03]
[1756534915985,36.12227632,205.86,205.85,0.03]
[1756534916568,31.55767026,205.86,205.85,0.03]
[1756534916774,36.12227632,205.86,205.85,0.03]
[1756534921774,10.12227632,205.86,205.85,0.03]
[1756534922291,48.40227632,205.86,205.85,0.03]
[1756534924795,10.12227632,205.86,205.85,0.03]
[1756534925098,48.40227632,205.86,205.85,0.03]
[1756534925292,48.40227632,205.86,205.84,0.03]
[1756534925492,4.56460606,205.85,205.84,0.03]
[1756534925881,10.1125123,205.85,205.84,0.03]
[1756534927706,48.4125123,205.85,205.84,0.03]
[1756534929202,51.63786201,205.85,205.84,0.03]
[1756534929406,48.4125123,205.85,205.84,0.03]
[1756534930278,13.33820807,205.85,205.84,0.03]
[1756534930484,51.63820807,205.85,205.84,0.03]
[1756534930792,9.4225123,205.85,205.84,0.03]
[1756534931108,10.1125123,205.85,205.84,0.03]
[1756534932885,9.4225123,205.85,205.84,0.03]
[1756534933092,30.56460606,205.85,205.84,0.03]
[1756534934892,35.4225123,205.85,205.84,0.03]
[1756534936483,36.1125123,205.85,205.84,0.03]
[1756534937084,35.4225123,205.85,205.84,0.03]
[1756534939383,0.06,205.86,205.84,0.69]
[1756534940416,0.06,205.86,205.85,4.56460606]
[1756534940787,0.06,205.86,205.85,0.66]
[1756534941412,0.06,205.86,205.85,5.51790624]
[1756534941723,0.06,205.86,205.85,10.0825123]
[1756534941890,0.06,205.86,205.85,23.82026788]
[1756534949208,1e-08,205.86,205.85,23.82026788]
[1756534950701,1e-08,205.86,205.85,25.76659788]
[1756534951019,0.06,205.89,205.85,25.76659788]
[1756534951020,1e-08,205.89,205.86,13.73775558]
[1756534951323,1e-08,205.89,205.88,18.30236164]
[1756534951820,1e-08,205.89,205.87,1.946046]
[1756534952073,0.71,205.88,205.86,38.26]
[1756534952711,5.27460606,205.87,205.84,42.854606]
[1756534953607,5.27460606,205.87,205.84,38.29]
[1756534954343,0.71,205.86,205.84,38.29]
[1756534954501,5.27460606,205.85,205.84,0.03]
[1756534954702,5.27460606,205.85,205.84,38.29]
[1756534954928,4.56460606,205.86,205.84,38.29]
[1756534955125,5.27460606,205.86,205.84,38.29]
[1756534955705,4.56460606,205.85,205.84,38.29]
[1756534955920,5.27460606,205.85,205.84,38.29]
[1756534956532,5.27460606,205.85,205.84,0.03]
[1756534958838,0.71,205.85,205.84,0.03]
[1756534959027,5.27460606,205.85,205.84,0.03]
[1756534959342,0.71,205.85,205.84,0.03]
[1756534959554,4.56460606,205.85,205.84,0.03]
[1756534959850,4.56460606,205.86,205.84,0.03]
[1756534960142,0.71,205.87,205.84,0.03]
[1756534960345,4.56460606,205.87,205.84,0.03]
[1756534960521,5.27460606,205.87,205.84,0.03]
[1756534960721,1e-08,205.89,205.84,0.71]
[1756534960920,1e-08,205.89,205.84,0.03]
[1756534960921,4.56460606,205.87,205.84,0.03]
[1756534961532,4.56460606,205.87,205.84,0.71]
[1756534962142,1e-08,205.89,205.85,5.24460606]
[1756534962330,1e-08,205.89,205.86,38.94]
[1756534962840,1e-08,205.89,205.86,38.26]
[1756534963019,1e-08,205.89,205.87,0.68]
[1756534963423,1e-08,205.89,205.86,43.11756672]
[1756534963620,4.56460607,205.89,205.86,43.79756672]
[1756534963843,4.56460606,205.88,205.86,38.26]
[1756534964930,5.27460607,205.89,205.86,38.26]
[1756534965335,4.56460607,205.89,205.86,0.68]
[1756534965637,1e-08,205.89,205.87,38.26]
[1756534966829,1e-08,205.89,205.88,18.98236164]
[1756534967030,1e-08,205.89,205.88,23.54696764]
[1756534967454,1e-08,205.89,205.88,23.83955994]
[1756534967652,1e-08,205.89,205.88,28.404166]
[1756534973558,1e-08,205.89,205.88,54.404166]
[1756534976253,1e-08,205.89,205.88,92.644166]
[1756534976460,1e-08,205.89,205.88,88.07955994]
[1756534976652,1e-08,205.89,205.88,92.644166]
[1756534980762,1e-08,205.89,205.88,92.674166]
[1756534981143,1e-08,205.89,205.88,27.754166]
[1756534981462,1e-08,205.89,205.88,65.994166]
[1756534983553,1e-08,205.89,205.88,66.694166]
[1756534983958,1e-08,205.89,205.88,65.994166]
[1756534984156,1e-08,205.89,205.88,61.42955994]
[1756534984348,1e-08,205.89,205.88,65.994166]
[1756534986362,1e-08,205.89,205.88,61.42955994]
[1756534986673,1e-08,205.89,205.88,42.834606]
[1756534987259,1e-08,205.89,205.88,42.83460606]
[1756534987459,1e-08,205.89,205.88,61.28739843]
[1756534988447,1e-08,205.89,205.88,56.72279237]
[1756534988646,0.66000001,205.89,205.88,40.19633]
[1756534988853,0.66000001,205.89,205.88,38.25]
[1756534990141,1e-08,205.89,205.88,61.96739843]
[1756534990362,1e-08,205.89,205.88,62.10956]
[1756534990549,1e-08,205.89,205.88,66.674167]
[1756534995369,1e-08,205.89,205.88,65.974167]
[1756534995550,1e-08,205.89,205.88,66.674167]
[1756534996164,0.06,205.91,205.88,66.674167]
[1756534996165,1e-08,205.91,205.9,39.73775558]
[1756534996475,1e-08,205.91,205.9,87.3790882]
[1756534996677,1e-08,205.91,205.9,88.0790882]
[1756534997775,1e-08,205.91,205.9,90.0248502]
[1756534998279,1e-08,205.91,205.9,89.3248502]
[1756534998452,1e-08,205.91,205.9,90.0248502]
[1756534998952,1e-08,205.91,205.9,89.3248502]
[1756535001278,1e-08,205.91,205.9,63.3248502]
[1756535001574,1e-08,205.91,205.9,64.0248502]
[1756535001772,1e-08,205.91,205.9,63.3248502]
[1756535005759,1e-08,205.92,205.91,13.73775558]
[1756535005979,1e-08,205.92,205.91,19.00236164]
[1756535006369,1e-08,205.92,205.91,20.94793364]
[1756535007179,1e-08,205.92,205.91,58.44793364]
[1756535007382,1e-08,205.92,205.91,63.30442433]
[1756535011385,1e-08,205.92,205.91,64.00442433]
[1756535011585,1e-08,205.92,205.91,63.30442433]
[1756535015686,1e-08,205.92,205.91,64.03442433]
[1756535018077,1e-08,205.94,205.93,39.73775558]
[1756535018280,1e-08,205.94,205.93,82.48236164]
[1756535018494,1e-08,205.94,205.93,83.18236164]
[1756535018889,1e-08,205.94,205.93,85.12793464]
[1756535019075,1e-08,205.94,205.93,89.98395367]
[1756535019467,1e-08,205.94,205.93,89.28395367]
[1756535021595,1e-08,205.95,205.93,89.28395367]
[1756535021789,1e-08,205.95,205.94,9.42038929]
[1756535022000,4.56460607,206.05,205.95,13.59559401]
[1756535022179,4.56460607,206.05,206.0,4.56460606]
[1756535022380,1e-08,206.05,206.02,4.56460606]
[1756535022585,1e-08,206.05,206.03,42.74460606]
[1756535024598,1e-08,206.05,206.04,23.15578815]
[1756535024802,1e-08,206.05,206.04,27.78039415]
[1756535026897,1e-08,206.05,206.04,23.21578809]
[1756535027122,1e-08,206.05,206.04,27.78039415]
[1756535027714,1e-08,206.05,206.04,23.21578809]
[1756535027879,1e-08,206.05,206.04,27.78039415]
[1756535028589,1e-08,206.05,206.04,65.94039415]
[1756535028989,1e-08,206.05,206.04,61.37578809]
[1756535029198,1e-08,206.05,206.04,65.94039415]
[1756535029690,1e-08,206.05,206.04,65.79823258]
[1756535035313,1e-08,206.05,206.04,65.77823258]
[1756535043122,1e-08,206.05,206.04,65.92039415]
[1756535043496,1e-08,206.05,206.04,91.92039415]
[1756535043913,1e-08,206.07,206.05,0.14216157]
[1756535044217,131.6,206.24,206.08,0.14216157]
[1756535044415,4.56460606,206.23,206.17,4.56460606]
[1756535044623,26.0,206.21,206.18,38.12]
[1756535046813,4.56460606,206.22,206.18,42.97009564]
[1756535047013,4.56460606,206.23,206.18,42.97009564]
[1756535047313,4.56460606,206.21,206.19,38.12]
[1756535047530,4.56460606,206.21,206.2,38.12]
[1756535049711,131.6,206.24,206.2,38.12]
[1756535049910,4.56460606,206.23,206.2,38.12]
[1756535051612,131.6,206.24,206.2,38.12]
[1756535051830,4.56460606,206.23,206.2,38.12]
[1756535052730,4.56460606,206.23,206.21,38.1]
[1756535052952,4.56460606,206.22,206.21,38.1]
[1756535053408,4.56460606,206.22,206.16,14.577614]
[1756535053614,4.56460606,206.19,206.13,13.73775558]
[1756535053815,4.56460606,206.2,206.19,38.1]
[1756535054032,136.50874295,206.24,206.19,38.1]
[1756535054336,4.56460606,206.2,206.15,4.56460606]
[1756535055113,4.56460606,206.21,206.15,42.66460606]
[1756535055309,4.56460606,206.21,206.16,4.56460606]
[1756535056011,0.71,206.2,206.16,5.28460606]
[1756535056428,0.71,206.2,206.17,4.56460606]
[1756535056631,0.71,206.2,206.18,38.1]
[1756535058843,0.71,206.22,206.18,38.1]
[1756535059022,5.27460606,206.21,206.18,38.1]
[1756535059228,4.56460606,206.21,206.18,38.1]
[1756535059440,0.71,206.2,206.18,38.1]
[1756535060443,136.93460606,206.24,206.19,0.72]
[1756535060637,136.93460606,206.24,206.18,47.51469493]
[1756535060638,0.06,206.24,206.2,5.28460606]
[1756535060944,0.06,206.24,206.21,43.36460606]
[1756535061146,0.06,206.24,206.22,38.08]
[1756535061338,0.06,206.24,206.22,38.8]
[1756535062047,0.06,206.24,206.23,0.72]
[1756535062921,0.06,206.24,206.23,5.56895505]
[1756535065024,0.06,206.24,206.22,38.08]
[1756535065229,0.06,206.24,206.22,43.64908033]
[1756535066733,0.06,206.24,206.23,0.72]
[1756535066932,0.06,206.24,206.23,5.56895505]
[1756535067342,0.06,206.24,206.23,4.84895505]
[1756535067523,0.06,206.24,206.23,5.56895505]
[1756535068429,0.06,206.24,206.23,4.84895505]
[1756535069550,0.06,206.24,206.23,23.15131669]
[1756535069954,0.06,206.24,206.23,23.87131669]
[1756535070152,0.06,206.24,206.23,25.81433769]
[1756535070337,0.06,206.24,206.23,23.87131669]
[1756535071137,0.06,206.24,206.23,25.81433769]
[1756535071336,0.06,206.24,206.23,21.24973163]
[1756535071534,0.06,206.24,206.23,23.87131669]
[1756535072830,0.06,206.24,206.23,61.93131669]
[1756535073455,0.06,206.24,206.23,38.06]
[1756535074262,0.06,206.24,206.23,47.47356111]
[1756535080741,0.06,206.24,206.23,42.90895505]
[1756535082549,0.06,206.24,206.23,4.84895505]
[1756535082764,0.06,206.24,206.23,42.88895505]
[1756535084473,4.62460606,206.24,206.21,1.94321]
[1756535084657,4.62460606,206.24,206.22,38.04]
[1756535084858,4.56460606,206.23,206.22,38.04]
[1756535086267,4.62460606,206.24,206.22,38.04]
[1756535088346,4.56460606,206.23,206.22,38.04]
[1756535088744,0.06,206.24,206.22,38.04]
[1756535088944,4.56460606,206.23,206.22,38.04]
[1756535089564,0.06,206.24,206.22,38.04]
[1756535089746,4.56460606,206.23,206.22,38.04]
[1756535091978,4.56460606,206.23,206.2,38.04]
[1756535091979,9.4136746,206.23,206.2,38.04]
[1756535092277,4.56460606,206.21,206.2,38.04]
[1756535092759,9.12921212,206.21,206.1,0.03]
[1756535092947,4.56460606,206.11,206.1,0.03]
[1756535093154,4.56460606,206.11,206.1,38.05]
[1756535093570,45.14859806,206.2,206.1,38.05]
[1756535093767,4.56460606,206.11,206.1,38.05]
[1756535097981,4.56460606,206.11,206.1,0.03]
[1756535098182,4.56460606,206.11,206.1,38.07]
[1756535102223,4.56460606,206.11,206.1,0.03]
[1756535102490,172.186828,206.16,206.1,0.03]
[1756535102789,4.56460606,206.11,206.1,0.03]
[1756535102987,209.9,206.21,206.11,0.14216157]
[1756535103200,4.56460606,206.17,206.12,38.02]
[1756535103408,131.6,206.22,206.12,42.58460606]
[1756535103693,131.6,206.22,206.13,4.56460606]
[1756535103694,4.56460606,206.18,206.13,4.56460606]
[1756535103899,4.56460606,206.18,206.14,13.73775558]
[1756535104092,4.56460606,206.18,206.15,38.02]
[1756535104802,4.56460606,206.19,206.16,4.85060147]
[1756535105569,0.06,206.24,206.16,4.85060147]
[1756535106304,4.56460606,206.2,206.16,4.85060147]
[1756535107395,26.0,206.23,206.16,4.85060147]
[1756535107595,4.56460606,206.19,206.16,4.85060147]
[1756535107796,4.56460606,206.18,206.15,4.85082636]
[1756535107993,4.56460606,206.16,206.1,0.03]
[1756535108307,4.56460606,206.2,206.13,38.02]
[1756535108795,4.84989572,206.19,206.14,38.02]
[1756535109500,4.56460606,206.15,206.14,38.02]
[1756535112302,9.41560138,206.15,206.12,38.02]
[1756535112506,4.56460606,206.13,206.12,38.02]
[1756535113604,4.56460606,206.13,206.1,0.03]
[1756535113805,4.56460606,206.11,206.1,0.03]
[1756535116583,30.56460606,206.11,206.1,0.03]
[1756535117712,35.12921212,206.11,206.1,0.03]
[1756535121805,166.72921212,206.11,206.1,0.03]
[1756535124305,166.78921212,206.11,206.1,0.03]
[1756535127795,171.64099029,206.11,206.1,0.03]
[1756535128198,167.07638423,206.11,206.1,0.03]
[1756535132622,171.64099029,206.11,206.1,0.03]
[1756535133408,172.34099029,206.11,206.1,0.03]
[1756535133726,172.34099029,206.11,206.1,0.7]
[1756535133727,0.06,206.11,206.1,0.7]
[1756535134439,0.06,206.11,206.1,10.11661964]
[1756535134604,0.06,206.14,206.12,4.56460606]
[1756535134804,0.06,206.14,206.11,0.67]
[1756535135017,0.06,206.14,206.11,38.67]
[1756535135221,0.06,206.14,206.12,0.67]
[1756535136436,0.06,206.14,206.13,4.85130742]
[1756535136934,0.06,206.14,206.13,5.52130742]
[1756535137731,0.06,206.14,206.13,0.67]
[1756535138511,0.06,206.14,206.11,38.67]
[1756535138716,0.06,206.14,206.12,0.67]
[1756535140532,0.06,206.14,206.13,0.67]
[1756535141829,0.06,206.14,206.12,4.85153738]
[1756535142023,5.26460606,206.13,206.1,38.01]
[1756535142335,4.56460606,206.13,206.1,38.01]
[1756535142507,4.56460606,206.13,206.1,38.68]
[1756535143229,0.06,206.14,206.11,0.67]
[1756535143544,4.62460606,206.14,206.11,0.67]
[1756535144931,4.62460606,206.14,206.1,42.86195436]
[1756535145123,5.32460606,206.14,206.1,43.53195436]
[1756535145435,4.56460606,206.13,206.11,0.67]
[1756535145637,0.06,206.14,206.11,0.67]
[1756535145821,0.06,206.14,206.11,5.23460606]
[1756535146333,0.06,206.14,206.12,0.67]
[1756535146522,0.06,206.14,206.12,5.52147735]
[1756535146726,0.06,206.14,206.1,42.57460606]
[1756535146727,0.06,206.14,206.11,4.85175453]
[1756535146913,0.76,206.14,206.11,4.85175453]
[1756535147429,5.32460606,206.14,206.11,4.85175453]
[1756535150438,5.32460606,206.14,206.1,38.68]
[1756535150637,5.26460606,206.13,206.1,0.03]
[1756535150827,4.56460606,206.12,206.11,37.96]
[1756535153645,0.7,206.13,206.11,37.96]
[1756535153829,4.56460606,206.12,206.11,37.96]
[1756535157448,0.7,206.13,206.11,37.96]
[1756535157643,4.56460606,206.12,206.11,37.96]
[1756535157948,5.26460606,206.12,206.1,37.99]
[1756535158130,4.56460606,206.12,206.1,37.99]
[1756535158331,4.56460606,206.11,206.1,37.99]
[1756535162748,4.56460606,206.11,206.1,0.03]
[1756535162940,9.84921212,206.11,206.1,0.03]
[1756535163155,17.94866622,206.11,206.1,0.03]
[1756535164940,26.0,206.08,206.07,0.03]
[1756535165137,30.56460606,206.08,206.07,0.03]
[1756535165446,31.28460606,206.08,206.07,0.03]
[1756535166452,36.13709053,206.08,206.07,0.03]
[1756535167131,39.38052364,206.08,206.07,0.03]
[1756535167845,53.11827922,206.08,206.05,0.03]
[1756535168149,26.0,206.04,205.99,0.69]
[1756535168449,4.56460606,206.0,205.99,0.69]
[1756535169351,4.56460606,206.02,205.99,0.69]
[1756535169532,26.0,206.04,205.99,5.54460459]
[1756535169856,26.0,206.04,206.0,0.69]
[1756535170058,4.56460606,206.01,205.97,0.69]
[1756535170258,4.56460606,205.99,205.98,0.69]
[1756535170426,4.56460606,205.99,205.96,0.72]
[1756535170627,4.56460606,205.97,205.96,38.66]
[1756535171438,4.56460606,205.98,205.96,38.66]
[1756535172352,0.72,206.0,205.96,37.97]
[1756535172353,4.56460606,205.97,205.96,37.97]
[1756535173230,4.56460606,205.97,205.96,38.66]
[1756535173737,4.56460606,205.97,205.96,37.97]
[1756535178667,4.56460606,205.97,205.96,0.03]
[1756535178847,5.28460606,205.97,205.96,0.03]
[1756535179453,10.13968204,205.97,205.96,0.03]
[1756535183340,48.22184361,205.97,205.96,0.03]
[1756535184067,30.56460606,205.94,205.93,0.03]
[1756535184245,68.50460606,205.94,205.93,0.03]
[1756535184447,74.08038929,205.94,205.93,0.03]
[1756535185872,26.72,205.94,205.93,0.03]
[1756535186080,30.56460606,205.94,205.93,0.03]
[1756535186470,31.28460606,205.94,205.93,0.03]
[1756535188666,74.08038929,205.94,205.93,0.03]
[1756535189263,78.64499535,205.94,205.91,0.03]
[1756535189474,30.56460606,205.92,205.91,0.03]
[1756535189965,31.28460606,205.92,205.91,0.03]
[1756535190281,4.56460606,205.92,205.91,0.72]
[1756535190457,0.72,205.95,205.91,0.72]
[1756535190657,37.94,205.97,205.92,0.69]
[1756535190867,26.0,205.94,205.92,0.69]
[1756535191571,26.0,205.95,205.92,0.69]
[1756535191770,4.56460606,205.93,205.91,0.03]
[1756535191974,26.0,205.95,205.92,0.71]
[1756535192366,37.94,205.99,205.92,0.71]
[1756535192586,37.94,205.99,205.92,5.56615146]
[1756535192761,26.0,205.98,205.93,0.71]
[1756535193075,26.68,205.98,205.91,0.74]
[1756535193282,4.56460606,205.93,205.91,5.59646862]
[1756535193466,4.56460606,205.93,205.92,0.71]
[1756535195181,4.56460606,205.93,205.91,4.88646862]
[1756535195381,4.56460606,205.92,205.91,0.03]
[1756535195597,5.24460606,205.92,205.91,0.03]
[1756535196156,131.6,205.93,205.92,0.03]
[1756535196356,131.6,205.93,205.92,0.74]
[1756535197864,4.56460606,205.95,205.92,0.74]
[1756535198068,4.56460606,205.94,205.92,0.74]
[1756535198874,4.56460606,205.93,205.92,0.03]
[1756535199985,5.24460606,205.93,205.92,0.03]
[1756535201389,0.68,205.93,205.92,0.03]
[1756535201692,5.24460606,205.93,205.92,0.03]
[1756535204669,10.10062509,205.93,205.92,0.03]
[1756535205478,40.66523115,205.93,205.92,0.03]
[1756535205796,52.60523115,205.93,205.91,0.03]
[1756535205983,9.12921212,205.92,205.91,0.03]
[1756535206382,14.66546697,205.92,205.91,0.03]
[1756535207608,28.40322255,205.92,205.89,0.2]
[1756535207777,35.12921212,205.9,205.89,0.2]
[1756535208104,4.56460606,205.9,205.89,0.2]
[1756535208469,5.24460606,205.9,205.89,0.2]
[1756535208707,9.80921212,205.9,205.89,0.2]
[1756535210984,35.80921212,205.9,205.89,0.2]
[1756535212502,31.24460606,205.9,205.89,0.2]
[1756535213584,30.56460606,205.9,205.89,0.2]
[1756535214684,31.24460606,205.9,205.89,0.2]
[1756535215187,30.56460606,205.9,205.89,0.2]
[1756535215501,4.56460606,205.9,205.89,0.91]
[1756535215700,4.56460606,205.9,205.89,0.2]
[1756535215883,4.56460606,205.9,205.89,0.91]
[1756535216500,4.56460606,205.9,205.89,0.2]
[1756535217578,9.80921212,205.9,205.89,0.2]
[1756535217893,40.66593868,205.9,205.89,0.2]
[1756535218283,36.10133262,205.9,205.89,0.2]
[1756535218678,30.56460606,205.9,205.89,0.91]
[1756535218878,4.56460606,205.9,205.89,0.91]
[1756535219509,4.56460606,205.9,205.89,0.2]
[1756535221599,5.28460606,205.9,205.89,0.2]
[1756535223206,4.56460606,205.9,205.89,0.2]
[1756535227210,5.28460606,205.9,205.89,0.2]
[1756535227408,14.70593868,205.9,205.89,0.2]
[1756535227608,17.93938677,205.9,205.89,0.2]
[1756535229111,7.79805415,205.9,205.89,0.2]
[1756535229312,30.56460606,205.9,205.89,0.2]
[1756535229816,34.51791966,205.9,205.89,0.2]
[1756535230321,43.93925228,205.9,205.89,0.2]
[1756535230541,43.93925228,205.9,205.88,0.03]